[Event "Early-Titled-Tuesday-Blitz-September-12-2023"]
[Site "Chess.com"]
[Date "2023.09.12"]
[Round "1"]
[White "Schattman"]
[Black "AvitalBor"]
[Result "0-1"]
[WhiteElo "2462"]
[BlackElo "2815"]
[TimeControl "180+1"]
[EndTime "8:05:46 PDT"]
[Termination "AvitalBor won by resignation"]

1. Nf3 {[%clk 0:03:00.9]} 1... d5 {[%clk 0:02:59]} 2. d4 {[%clk 0:03:00.2]} 2...
g6 {[%clk 0:02:58.8]} 3. g3 {[%clk 0:02:55.4]} 3... Bg7 {[%clk 0:02:58.4]} 4.
Bg2 {[%clk 0:02:55.7]} 4... c5 {[%clk 0:02:59.1]} 5. c3 {[%clk 0:02:49.3]} 5...
Nf6 {[%clk 0:02:54.5]} 6. O-O {[%clk 0:02:48.1]} 6... O-O {[%clk 0:02:54.2]} 7.
Bf4 {[%clk 0:02:46.1]} 7... Ne4 {[%clk 0:02:49.8]} 8. Nbd2 {[%clk 0:02:33.9]}
8... cxd4 {[%clk 0:02:49]} 9. cxd4 {[%clk 0:02:30.7]} 9... Nc6 {[%clk
0:02:46.8]} 10. Nxe4 {[%clk 0:02:16.5]} 10... dxe4 {[%clk 0:02:47.7]} 11. Ne5
{[%clk 0:02:16.3]} 11... Nxd4 {[%clk 0:02:42.2]} 12. Bxe4 {[%clk 0:02:09.5]}
12... Bh3 {[%clk 0:02:42.4]} 13. Re1 {[%clk 0:02:01.3]} 13... Qb6 {[%clk
0:02:35.4]} 14. Nd3 {[%clk 0:01:32.8]} 14... Rac8 {[%clk 0:02:19.5]} 15. Be3
{[%clk 0:01:28.4]} 15... Rfd8 {[%clk 0:02:12.1]} 16. Qa4 {[%clk 0:01:19.2]}
16... Bd7 {[%clk 0:01:44.7]} 17. Bxd4 {[%clk 0:00:57.5]} 17... Bxd4 {[%clk
0:01:39.6]} 18. Qa3 {[%clk 0:00:45.7]} 18... Bb5 {[%clk 0:01:39.2]} 19. e3
{[%clk 0:00:34.5]} 19... Bf6 {[%clk 0:01:26.2]} 20. Nf4 {[%clk 0:00:26.7]} 20...
e6 {[%clk 0:01:26.2]} 21. Rac1 {[%clk 0:00:20.1]} 21... Ba6 {[%clk 0:01:20.9]}
22. Rxc8 {[%clk 0:00:18.7]} 22... Rxc8 {[%clk 0:01:21.5]} 23. b3 {[%clk
0:00:18.6]} 23... Qd8 {[%clk 0:01:13.6]} 24. Qb4 {[%clk 0:00:15.4]} 24... Bc3
{[%clk 0:01:11.7]} 0-1

[Event "Early-Titled-Tuesday-Blitz-September-12-2023"]
[Site "Chess.com"]
[Date "2023.09.12"]
[Round "1"]
[White "Gyulamiryan-koryun"]
[Black "DrDreBeats"]
[Result "0-1"]
[WhiteElo "2003"]
[BlackElo "2546"]
[TimeControl "180+1"]
[EndTime "8:05:47 PDT"]
[Termination "DrDreBeats won on time"]

1. e4 {[%clk 0:03:00.1]} 1... d5 {[%clk 0:02:56.3]} 2. exd5 {[%clk 0:02:59.8]}
2... Qxd5 {[%clk 0:02:56.9]} 3. Nc3 {[%clk 0:03:00.3]} 3... Qa5 {[%clk
0:02:56.7]} 4. d4 {[%clk 0:02:59.1]} 4... Nf6 {[%clk 0:02:57]} 5. Bd2 {[%clk
0:02:48.2]} 5... Bg4 {[%clk 0:02:50]} 6. Be2 {[%clk 0:02:44.4]} 6... Bxe2 {[%clk
0:02:44.7]} 7. Qxe2 {[%clk 0:02:35.1]} 7... Nc6 {[%clk 0:02:40.4]} 8. Nf3 {[%clk
0:02:32]} 8... O-O-O {[%clk 0:02:39.7]} 9. Nb5 {[%clk 0:02:06]} 9... Qb6 {[%clk
0:02:37.9]} 10. c3 {[%clk 0:02:02]} 10... a6 {[%clk 0:02:37.3]} 11. d5 {[%clk
0:01:07.4]} 11... Nxd5 {[%clk 0:02:08.2]} 12. Nbd4 {[%clk 0:01:02]} 12... Nxd4
{[%clk 0:02:01.3]} 13. Nxd4 {[%clk 0:00:59.4]} 13... Qxb2 {[%clk 0:01:56.8]} 14.
O-O {[%clk 0:00:16.8]} 14... Nxc3 {[%clk 0:01:54.9]} 15. Bxc3 {[%clk 0:00:13.2]}
15... Qxc3 {[%clk 0:01:53.1]} 16. Nb3 {[%clk 0:00:05.8]} 16... e6 {[%clk
0:01:49.6]} 17. Rac1 {[%clk 0:00:05.7]} 17... Qb4 {[%clk 0:01:43.1]} 18. Qe5
{[%clk 0:00:05.3]} 18... Bd6 {[%clk 0:01:42]} 19. Qe3 {[%clk 0:00:04.4]} 19...
Qf4 {[%clk 0:01:40.4]} 20. Qxf4 {[%clk 0:00:03.2]} 20... Bxf4 {[%clk 0:01:40.9]}
21. Rc3 {[%clk 0:00:03.6]} 21... Be5 {[%clk 0:01:39.8]} 22. Rc4 {[%clk
0:00:03.6]} 22... Rd7 {[%clk 0:01:37.6]} 23. h3 {[%clk 0:00:02.7]} 23... Rhd8
{[%clk 0:01:37.9]} 24. g3 {[%clk 0:00:01.9]} 24... Rd1 {[%clk 0:01:37.8]} 25.
Rxd1 {[%clk 0:00:01.5]} 25... Rxd1+ {[%clk 0:01:38.7]} 26. Kg2 {[%clk
0:00:02.3]} 26... b5 {[%clk 0:01:39.2]} 27. Rc5 {[%clk 0:00:02.3]} 27... Bd6
{[%clk 0:01:38.7]} 28. Rh5 {[%clk 0:00:02.2]} 28... h6 {[%clk 0:01:38.5]} 29.
Rh4 {[%clk 0:00:02.1]} 29... Rd5 {[%clk 0:01:38.8]} 30. Re4 {[%clk 0:00:02.1]}
30... c5 {[%clk 0:01:39.3]} 0-1

[Event "Early-Titled-Tuesday-Blitz-September-12-2023"]
[Site "Chess.com"]
[Date "2023.09.12"]
[Round "1"]
[White "Hananmo"]
[Black "hansen"]
[Result "0-1"]
[WhiteElo "2490"]
[BlackElo "2887"]
[TimeControl "180+1"]
[EndTime "8:05:52 PDT"]
[Termination "hansen won by resignation"]

1. e4 {[%clk 0:03:00]} 1... e5 {[%clk 0:02:51]} 2. Nf3 {[%clk 0:02:58.5]} 2...
Nc6 {[%clk 0:02:48.7]} 3. d4 {[%clk 0:02:55.9]} 3... exd4 {[%clk 0:02:40.6]} 4.
Nxd4 {[%clk 0:02:56.8]} 4... Bc5 {[%clk 0:02:29.2]} 5. Nxc6 {[%clk 0:02:47.3]}
5... Qf6 {[%clk 0:02:28.7]} 6. Qf3 {[%clk 0:02:47.6]} 6... dxc6 {[%clk
0:02:26.4]} 7. Nc3 {[%clk 0:02:47.4]} 7... Be6 {[%clk 0:02:23]} 8. Be3 {[%clk
0:02:45.1]} 8... Bb4 {[%clk 0:02:13.6]} 9. Bd2 {[%clk 0:02:44.5]} 9... O-O-O
{[%clk 0:02:11.7]} 10. Bd3 {[%clk 0:02:40.8]} 10... Ne7 {[%clk 0:02:04.2]} 11.
Qxf6 {[%clk 0:02:38.3]} 11... gxf6 {[%clk 0:02:04.4]} 12. a3 {[%clk 0:02:38.3]}
12... Bd6 {[%clk 0:02:04.2]} 13. O-O-O {[%clk 0:02:32.6]} 13... h5 {[%clk
0:02:01.6]} 14. f4 {[%clk 0:02:25.2]} 14... h4 {[%clk 0:02:00.7]} 15. Be2 {[%clk
0:01:48.2]} 15... Rdg8 {[%clk 0:01:55.6]} 16. Bf3 {[%clk 0:01:48]} 16... Bg4
{[%clk 0:01:35.5]} 17. Rhe1 {[%clk 0:01:39.6]} 17... Bxf3 {[%clk 0:01:28.4]} 18.
gxf3 {[%clk 0:01:40.5]} 18... Ng6 {[%clk 0:01:28.8]} 19. Ne2 {[%clk 0:01:32.3]}
19... h3 {[%clk 0:01:29.2]} 20. Bc3 {[%clk 0:01:26.4]} 20... Be7 {[%clk
0:00:55.9]} 21. Rg1 {[%clk 0:01:16.1]} 21... Nh4 {[%clk 0:00:55.9]} 22. Rdf1
{[%clk 0:00:47.3]} 22... Rg2 {[%clk 0:00:55.5]} 23. Ng3 {[%clk 0:00:35]} 23...
Nxf3 {[%clk 0:00:55.3]} 0-1

[Event "Early-Titled-Tuesday-Blitz-September-12-2023"]
[Site "Chess.com"]
[Date "2023.09.12"]
[Round "1"]
[White "wild3000"]
[Black "DmitryMaximov"]
[Result "0-1"]
[WhiteElo "2418"]
[BlackElo "2742"]
[TimeControl "180+1"]
[EndTime "8:05:57 PDT"]
[Termination "DmitryMaximov won by resignation"]

1. d4 {[%clk 0:02:58.8]} 1... Nf6 {[%clk 0:03:00.1]} 2. Nf3 {[%clk 0:02:59.1]}
2... g6 {[%clk 0:03:00.3]} 3. e3 {[%clk 0:02:59.3]} 3... Bg7 {[%clk 0:03:00.5]}
4. Be2 {[%clk 0:02:59.7]} 4... d6 {[%clk 0:03:00.7]} 5. O-O {[%clk 0:03:00.6]}
5... Nfd7 {[%clk 0:03:00.8]} 6. b3 {[%clk 0:03:00.6]} 6... e5 {[%clk 0:03:00.8]}
7. Bb2 {[%clk 0:03:00.8]} 7... Nc6 {[%clk 0:02:58.2]} 8. c4 {[%clk 0:02:56.1]}
8... O-O {[%clk 0:02:57.8]} 9. Nc3 {[%clk 0:02:52.2]} 9... f5 {[%clk 0:02:57.6]}
10. dxe5 {[%clk 0:02:49.8]} 10... dxe5 {[%clk 0:02:57.3]} 11. e4 {[%clk
0:02:46.6]} 11... f4 {[%clk 0:02:45.2]} 12. Nd5 {[%clk 0:02:43.6]} 12... Kh8
{[%clk 0:02:34.7]} 13. b4 {[%clk 0:02:31.8]} 13... Ncb8 {[%clk 0:02:26.8]} 14.
Qb3 {[%clk 0:02:16]} 14... c6 {[%clk 0:02:24.5]} 15. Nc3 {[%clk 0:02:15.6]}
15... Qe7 {[%clk 0:02:17.7]} 16. Rfd1 {[%clk 0:02:01.6]} 16... Nb6 {[%clk
0:02:16.5]} 17. a4 {[%clk 0:01:58.5]} 17... Be6 {[%clk 0:02:14.8]} 18. a5 {[%clk
0:01:57.2]} 18... Nc8 {[%clk 0:02:12.6]} 19. Na4 {[%clk 0:01:50.9]} 19... Nd7
{[%clk 0:02:11.2]} 20. Nc5 {[%clk 0:01:27.1]} 20... Nxc5 {[%clk 0:02:04.6]} 21.
bxc5 {[%clk 0:01:28]} 21... Bg8 {[%clk 0:02:02.1]} 22. Bc3 {[%clk 0:01:18.6]}
22... g5 {[%clk 0:01:54]} 23. Qb2 {[%clk 0:01:13.6]} 23... Re8 {[%clk
0:01:53.8]} 24. h3 {[%clk 0:01:03.6]} 24... Qxc5 {[%clk 0:01:45]} 25. Qxb7
{[%clk 0:00:53.6]} 25... Nd6 {[%clk 0:01:45.1]} 26. Qc7 {[%clk 0:00:20]} 26...
Nxe4 {[%clk 0:01:42.8]} 27. Bb2 {[%clk 0:00:18.7]} 27... Qxf2+ {[%clk
0:01:42.3]} 28. Kh2 {[%clk 0:00:18.4]} 28... g4 {[%clk 0:01:35.3]} 29. hxg4
{[%clk 0:00:16.8]} 29... Re6 {[%clk 0:01:29]} 30. g5 {[%clk 0:00:14.7]} 30...
Nxg5 {[%clk 0:01:23.1]} 31. Nxg5 {[%clk 0:00:12.1]} 31... Rh6+ {[%clk
0:01:23.1]} 32. Nh3 {[%clk 0:00:12.4]} 32... Rxh3+ {[%clk 0:01:23.3]} 0-1

[Event "Early-Titled-Tuesday-Blitz-September-12-2023"]
[Site "Chess.com"]
[Date "2023.09.12"]
[Round "1"]
[White "FeketeBarika"]
[Black "enestnrvrd"]
[Result "0-1"]
[WhiteElo "2391"]
[BlackElo "2696"]
[TimeControl "180+1"]
[EndTime "8:06:06 PDT"]
[Termination "enestnrvrd won on time"]

1. Nf3 {[%clk 0:02:59.8]} 1... Nf6 {[%clk 0:02:59.2]} 2. g3 {[%clk 0:03:00.7]}
2... e6 {[%clk 0:02:58.8]} 3. Bg2 {[%clk 0:02:58.7]} 3... b6 {[%clk 0:02:59.3]}
4. d4 {[%clk 0:02:59.1]} 4... Bb7 {[%clk 0:02:58.2]} 5. O-O {[%clk 0:02:59.3]}
5... Be7 {[%clk 0:02:58.3]} 6. c4 {[%clk 0:02:58.7]} 6... O-O {[%clk 0:02:58.8]}
7. Nc3 {[%clk 0:02:59]} 7... Ne4 {[%clk 0:02:59]} 8. Nxe4 {[%clk 0:02:57.2]}
8... Bxe4 {[%clk 0:02:57.2]} 9. b3 {[%clk 0:02:56.8]} 9... f5 {[%clk 0:02:54.5]}
10. Bb2 {[%clk 0:02:54.9]} 10... Bf6 {[%clk 0:02:54.8]} 11. Ne5 {[%clk
0:02:45.5]} 11... Bxg2 {[%clk 0:02:53.1]} 12. Kxg2 {[%clk 0:02:46.4]} 12... d6
{[%clk 0:02:53.1]} 13. Nf3 {[%clk 0:02:40.3]} 13... Nd7 {[%clk 0:02:52.1]} 14.
Qd2 {[%clk 0:02:39.2]} 14... Qe7 {[%clk 0:02:48.7]} 15. Rad1 {[%clk 0:02:34.2]}
15... g5 {[%clk 0:02:44]} 16. e3 {[%clk 0:01:50.7]} 16... g4 {[%clk 0:02:36]}
17. Ng1 {[%clk 0:01:49.1]} 17... Bg7 {[%clk 0:02:26.4]} 18. Rde1 {[%clk
0:01:34.4]} 18... Nf6 {[%clk 0:02:10]} 19. f3 {[%clk 0:01:17.1]} 19... gxf3+
{[%clk 0:02:06]} 20. Nxf3 {[%clk 0:01:18]} 20... Ne4 {[%clk 0:02:05.7]} 21. Qc2
{[%clk 0:01:15.8]} 21... Bf6 {[%clk 0:02:05]} 22. d5 {[%clk 0:01:13.4]} 22...
Bxb2 {[%clk 0:02:00.2]} 23. Qxb2 {[%clk 0:01:14.3]} 23... e5 {[%clk 0:02:00.6]}
24. Nd2 {[%clk 0:01:03.7]} 24... Nc5 {[%clk 0:01:53.4]} 25. Qc3 {[%clk
0:00:59.3]} 25... e4 {[%clk 0:01:48.7]} 26. Re2 {[%clk 0:00:43.2]} 26... Nd3
{[%clk 0:01:47.4]} 27. Rd1 {[%clk 0:00:39.3]} 27... Rf6 {[%clk 0:01:40.5]} 28.
Nf1 {[%clk 0:00:38.2]} 28... Raf8 {[%clk 0:01:40.2]} 29. a3 {[%clk 0:00:30.5]}
29... Ne5 {[%clk 0:01:39.3]} 30. Nd2 {[%clk 0:00:23.7]} 30... h5 {[%clk
0:01:38.6]} 31. Kh1 {[%clk 0:00:17.2]} 31... Rg6 {[%clk 0:01:36.9]} 32. Rf1
{[%clk 0:00:10.6]} 32... h4 {[%clk 0:01:30.3]} 33. Rg2 {[%clk 0:00:09.7]} 33...
hxg3 {[%clk 0:01:29.3]} 34. Rxg3 {[%clk 0:00:10.6]} 34... Rxg3 {[%clk
0:01:28.5]} 35. hxg3 {[%clk 0:00:08.4]} 35... Qg5 {[%clk 0:01:28.7]} 36. Kg2
{[%clk 0:00:01.4]} 36... Ng4 {[%clk 0:01:28.3]} 0-1

[Event "Early-Titled-Tuesday-Blitz-September-12-2023"]
[Site "Chess.com"]
[Date "2023.09.12"]
[Round "1"]
[White "bascheyaro"]
[Black "amylazy"]
[Result "1-0"]
[WhiteElo "2815"]
[BlackElo "2462"]
[TimeControl "180+1"]
[EndTime "8:06:07 PDT"]
[Termination "bascheyaro won by resignation"]

1. d4 {[%clk 0:02:57.9]} 1... Nf6 {[%clk 0:02:59.5]} 2. Nf3 {[%clk 0:02:57.7]}
2... g6 {[%clk 0:02:59.7]} 3. Bf4 {[%clk 0:02:57.8]} 3... Bg7 {[%clk 0:02:59.3]}
4. e3 {[%clk 0:02:58.2]} 4... O-O {[%clk 0:02:59.5]} 5. h3 {[%clk 0:02:58.6]}
5... d6 {[%clk 0:02:59.3]} 6. Be2 {[%clk 0:02:58.9]} 6... b6 {[%clk 0:02:58.8]}
7. O-O {[%clk 0:02:58.7]} 7... Bb7 {[%clk 0:02:59.2]} 8. a4 {[%clk 0:02:58.9]}
8... Nbd7 {[%clk 0:02:59]} 9. a5 {[%clk 0:02:58.7]} 9... a6 {[%clk 0:02:59.5]}
10. axb6 {[%clk 0:02:58.6]} 10... Nxb6 {[%clk 0:02:59.9]} 11. c4 {[%clk
0:02:55.1]} 11... Ne4 {[%clk 0:02:56.6]} 12. Qc2 {[%clk 0:02:52.2]} 12... Nf6
{[%clk 0:02:43]} 13. Nc3 {[%clk 0:02:51.7]} 13... Re8 {[%clk 0:02:40.1]} 14.
Rfd1 {[%clk 0:02:51.3]} 14... Qc8 {[%clk 0:02:39.8]} 15. b4 {[%clk 0:02:42.7]}
15... Nbd7 {[%clk 0:02:34.7]} 16. Bg3 {[%clk 0:02:23.3]} 16... Rb8 {[%clk
0:02:23.6]} 17. Rdb1 {[%clk 0:02:17.4]} 17... e5 {[%clk 0:02:18.4]} 18. dxe5
{[%clk 0:02:16.2]} 18... Nxe5 {[%clk 0:02:14.6]} 19. Nxe5 {[%clk 0:02:12]} 19...
dxe5 {[%clk 0:02:14.6]} 20. c5 {[%clk 0:02:12.4]} 20... Qe6 {[%clk 0:01:56.1]}
21. Qa4 {[%clk 0:02:01.2]} 21... Ne4 {[%clk 0:01:50.9]} 22. Nxe4 {[%clk
0:01:56.5]} 22... Bxe4 {[%clk 0:01:50.8]} 23. Rc1 {[%clk 0:01:56.7]} 23... Ra8
{[%clk 0:01:32.5]} 24. Bxa6 {[%clk 0:01:44.5]} 24... Qd5 {[%clk 0:01:14]} 25.
Rd1 {[%clk 0:01:34.6]} 25... Qe6 {[%clk 0:01:03.9]} 26. Qd7 {[%clk 0:01:29.3]}
26... Qxd7 {[%clk 0:00:57.8]} 27. Rxd7 {[%clk 0:01:28.9]} 27... c6 {[%clk
0:00:56.9]} 28. Ra5 {[%clk 0:00:59.4]} 28... Bd5 {[%clk 0:00:55.6]} 29. Bb7
{[%clk 0:00:53.5]} 29... Rab8 {[%clk 0:00:43.4]} 30. b5 {[%clk 0:00:50.5]} 30...
Be6 {[%clk 0:00:37.5]} 31. bxc6 {[%clk 0:00:50.7]} 31... Bxd7 {[%clk 0:00:36.7]}
32. cxd7 {[%clk 0:00:51.1]} 32... Red8 {[%clk 0:00:35.4]} 33. c6 {[%clk
0:00:51.6]} 1-0

[Event "Early-Titled-Tuesday-Blitz-September-12-2023"]
[Site "Chess.com"]
[Date "2023.09.12"]
[Round "1"]
[White "andrzej"]
[Black "Itk04"]
[Result "0-1"]
[WhiteElo "2417"]
[BlackElo "2736"]
[TimeControl "180+1"]
[EndTime "8:06:08 PDT"]
[Termination "Itk04 won on time"]

1. e4 {[%clk 0:03:00.9]} 1... e6 {[%clk 0:03:00.1]} 2. d4 {[%clk 0:03:00.6]}
2... d5 {[%clk 0:03:00.8]} 3. Nc3 {[%clk 0:03:01.2]} 3... Bb4 {[%clk 0:03:00.4]}
4. e5 {[%clk 0:03:01.6]} 4... c5 {[%clk 0:03:00.8]} 5. a3 {[%clk 0:03:02]} 5...
Bxc3+ {[%clk 0:03:01.5]} 6. bxc3 {[%clk 0:03:02.5]} 6... Qa5 {[%clk 0:03:02.4]}
7. Bd2 {[%clk 0:02:54.1]} 7... Qa4 {[%clk 0:03:02]} 8. Qg4 {[%clk 0:02:44.3]}
8... Kf8 {[%clk 0:03:01.8]} 9. Kd1 {[%clk 0:02:39.5]} 9... Nc6 {[%clk 0:03:00]}
10. Nf3 {[%clk 0:02:35.9]} 10... Nge7 {[%clk 0:02:54.2]} 11. Bd3 {[%clk
0:02:31.7]} 11... b6 {[%clk 0:02:49.5]} 12. h4 {[%clk 0:02:29.2]} 12... h6
{[%clk 0:02:47.4]} 13. Rh3 {[%clk 0:02:26.2]} 13... Ba6 {[%clk 0:02:43.3]} 14.
Rg3 {[%clk 0:02:19.4]} 14... g6 {[%clk 0:02:05.5]} 15. Bxa6 {[%clk 0:02:09.8]}
15... Qxa6 {[%clk 0:02:05.4]} 16. h5 {[%clk 0:01:58.4]} 16... g5 {[%clk
0:01:53.3]} 17. Nxg5 {[%clk 0:01:55.6]} 17... hxg5 {[%clk 0:01:42.4]} 18. Qxg5
{[%clk 0:00:49.3]} 18... Ke8 {[%clk 0:01:40.1]} 19. Qf6 {[%clk 0:00:41.4]} 19...
Rxh5 {[%clk 0:01:30.6]} 20. Rg7 {[%clk 0:00:24.5]} 20... Rf5 {[%clk 0:01:16.6]}
21. Qh4 {[%clk 0:00:15.3]} 21... Kd7 {[%clk 0:01:10.5]} 22. Qh7 {[%clk
0:00:12.5]} 22... Rxf2 {[%clk 0:01:09]} 23. Be1 {[%clk 0:00:08.9]} 23... Qe2+
{[%clk 0:01:08.2]} 24. Kc1 {[%clk 0:00:09.5]} 24... Qxe1+ {[%clk 0:01:07.5]} 25.
Kb2 {[%clk 0:00:09.8]} 25... Qe4 {[%clk 0:01:08.1]} 26. Qxe4 {[%clk 0:00:03.4]}
26... dxe4 {[%clk 0:01:09]} 27. dxc5 {[%clk 0:00:02]} 27... bxc5 {[%clk
0:01:09.9]} 28. Rd1+ {[%clk 0:00:02.5]} 28... Kc7 {[%clk 0:01:08.8]} 0-1

[Event "Early-Titled-Tuesday-Blitz-September-12-2023"]
[Site "Chess.com"]
[Date "2023.09.12"]
[Round "1"]
[White "ivana_999"]
[Black "HATilay"]
[Result "0-1"]
[WhiteElo "2039"]
[BlackElo "2547"]
[TimeControl "180+1"]
[EndTime "8:06:08 PDT"]
[Termination "HATilay won by checkmate"]

1. d4 {[%clk 0:03:00.9]} 1... Nf6 {[%clk 0:02:56.6]} 2. c4 {[%clk 0:03:00.6]}
2... e6 {[%clk 0:02:56.6]} 3. Nc3 {[%clk 0:02:57.6]} 3... Bb4 {[%clk 0:02:56.2]}
4. a3 {[%clk 0:02:58]} 4... Bxc3+ {[%clk 0:02:56]} 5. bxc3 {[%clk 0:02:58.7]}
5... O-O {[%clk 0:02:56.4]} 6. f3 {[%clk 0:02:58.2]} 6... c5 {[%clk 0:02:54.4]}
7. e4 {[%clk 0:02:56.6]} 7... Nc6 {[%clk 0:02:52.3]} 8. Bg5 {[%clk 0:02:53.3]}
8... h6 {[%clk 0:02:50.3]} 9. Bh4 {[%clk 0:02:51]} 9... cxd4 {[%clk 0:02:40.3]}
10. cxd4 {[%clk 0:02:47.2]} 10... Qa5+ {[%clk 0:02:40.5]} 11. Kf2 {[%clk
0:02:40]} 11... Qc3 {[%clk 0:02:27.4]} 12. Bxf6 {[%clk 0:02:17.1]} 12... gxf6
{[%clk 0:02:26.5]} 13. Ne2 {[%clk 0:02:16.8]} 13... Qxc4 {[%clk 0:02:26.1]} 14.
h4 {[%clk 0:02:16.2]} 14... Kh7 {[%clk 0:01:21.6]} 15. g4 {[%clk 0:02:07.7]}
15... d5 {[%clk 0:01:14.6]} 16. g5 {[%clk 0:01:37.5]} 16... dxe4 {[%clk
0:01:14.2]} 17. gxf6 {[%clk 0:01:22.4]} 17... e5 {[%clk 0:00:31.4]} 18. d5
{[%clk 0:00:48.7]} 18... e3+ {[%clk 0:00:19.4]} 19. Kg3 {[%clk 0:00:37]} 19...
Rg8+ {[%clk 0:00:18.6]} 20. Kh2 {[%clk 0:00:36.7]} 20... Qxh4+ {[%clk
0:00:18.1]} 21. Bh3 {[%clk 0:00:35.1]} 21... Qxh3# {[%clk 0:00:17.5]} 0-1

[Event "Early-Titled-Tuesday-Blitz-September-12-2023"]
[Site "Chess.com"]
[Date "2023.09.12"]
[Round "1"]
[White "DonJuanEGenaro"]
[Black "Semetey"]
[Result "1-0"]
[WhiteElo "1960"]
[BlackElo "2523"]
[TimeControl "180+1"]
[EndTime "8:06:11 PDT"]
[Termination "DonJuanEGenaro won by resignation"]

1. d4 {[%clk 0:02:49.4]} 1... d5 {[%clk 0:02:58.6]} 2. Nf3 {[%clk 0:02:48.8]}
2... Nf6 {[%clk 0:02:58]} 3. c4 {[%clk 0:02:48.7]} 3... c6 {[%clk 0:02:56.9]} 4.
cxd5 {[%clk 0:02:48.5]} 4... cxd5 {[%clk 0:02:56.9]} 5. Nc3 {[%clk 0:02:48.5]}
5... Nc6 {[%clk 0:02:57]} 6. Bf4 {[%clk 0:02:48]} 6... a6 {[%clk 0:02:55.8]} 7.
a3 {[%clk 0:02:47.4]} 7... Bf5 {[%clk 0:02:53.4]} 8. e3 {[%clk 0:02:44.8]} 8...
e6 {[%clk 0:02:51.3]} 9. Be2 {[%clk 0:02:44.6]} 9... Bd6 {[%clk 0:02:50.6]} 10.
Bxd6 {[%clk 0:02:43]} 10... Qxd6 {[%clk 0:02:51.5]} 11. O-O {[%clk 0:02:41.5]}
11... O-O {[%clk 0:02:47.1]} 12. b4 {[%clk 0:02:41]} 12... b5 {[%clk 0:02:46.8]}
13. Qb3 {[%clk 0:02:40.4]} 13... Nd7 {[%clk 0:02:43.5]} 14. a4 {[%clk
0:02:13.2]} 14... Nxb4 {[%clk 0:02:10.8]} 15. axb5 {[%clk 0:02:11.4]} 15... a5
{[%clk 0:02:11]} 16. Rfc1 {[%clk 0:01:55.5]} 16... Rfc8 {[%clk 0:01:49.9]} 17.
Na4 {[%clk 0:01:54.3]} 17... Bc2 {[%clk 0:01:46.7]} 18. Qb2 {[%clk 0:01:46.8]}
18... Bd3 {[%clk 0:01:21.3]} 19. Rxc8+ {[%clk 0:01:22.3]} 19... Rxc8 {[%clk
0:01:19.5]} 20. Bxd3 {[%clk 0:01:21.9]} 20... Nxd3 {[%clk 0:01:19.1]} 21. Qd2
{[%clk 0:01:15.7]} 21... Nb4 {[%clk 0:01:15.2]} 22. Rc1 {[%clk 0:01:13.5]} 22...
Rb8 {[%clk 0:01:06.1]} 23. Nc5 {[%clk 0:01:11.4]} 23... Rxb5 {[%clk 0:01:00.4]}
24. Nxd7 {[%clk 0:01:06.7]} 24... Qxd7 {[%clk 0:01:01.2]} 25. Ne5 {[%clk
0:01:06.5]} 25... Qd8 {[%clk 0:00:36.6]} 26. Qc3 {[%clk 0:01:00]} 26... f6
{[%clk 0:00:25.5]} 27. Qc8 {[%clk 0:00:57.1]} 27... Rb8 {[%clk 0:00:25.2]} 28.
Qxe6+ {[%clk 0:00:54.7]} 28... Kh8 {[%clk 0:00:23.6]} 29. Nf7+ {[%clk
0:00:54.4]} 1-0

[Event "Early-Titled-Tuesday-Blitz-September-12-2023"]
[Site "Chess.com"]
[Date "2023.09.12"]
[Round "1"]
[White "sergoy"]
[Black "zverr1"]
[Result "1-0"]
[WhiteElo "2930"]
[BlackElo "2511"]
[TimeControl "180+1"]
[EndTime "8:06:15 PDT"]
[Termination "sergoy won by checkmate"]

1. d4 {[%clk 0:03:00.9]} 1... Nf6 {[%clk 0:02:59.6]} 2. c4 {[%clk 0:03:01.6]}
2... g6 {[%clk 0:03:00.2]} 3. Nf3 {[%clk 0:03:02.1]} 3... Bg7 {[%clk 0:03:00.1]}
4. g3 {[%clk 0:03:02.4]} 4... O-O {[%clk 0:03:00]} 5. Bg2 {[%clk 0:03:03.1]}
5... c6 {[%clk 0:03:00.9]} 6. O-O {[%clk 0:03:02.3]} 6... d5 {[%clk 0:03:01.8]}
7. Nc3 {[%clk 0:03:02.8]} 7... dxc4 {[%clk 0:03:00.2]} 8. e4 {[%clk 0:03:03.5]}
8... Bg4 {[%clk 0:02:57.1]} 9. Be3 {[%clk 0:03:02.7]} 9... e5 {[%clk 0:02:52]}
10. dxe5 {[%clk 0:03:02.7]} 10... Nfd7 {[%clk 0:02:50.7]} 11. e6 {[%clk
0:03:00.8]} 11... Bxe6 {[%clk 0:02:49]} 12. Ng5 {[%clk 0:03:00.9]} 12... Qe7
{[%clk 0:02:41.1]} 13. f4 {[%clk 0:02:56.9]} 13... Nc5 {[%clk 0:02:28.6]} 14.
Kh1 {[%clk 0:02:42.3]} 14... Nd3 {[%clk 0:02:24.1]} 15. f5 {[%clk 0:02:42.4]}
15... Bxf5 {[%clk 0:02:19.1]} 16. Rxf5 {[%clk 0:02:07]} 16... gxf5 {[%clk
0:02:17.4]} 17. Qh5 {[%clk 0:02:05.8]} 17... h6 {[%clk 0:02:13]} 18. Nf3 {[%clk
0:02:01.3]} 18... fxe4 {[%clk 0:02:05.3]} 19. Nh4 {[%clk 0:02:01.5]} 19... f5
{[%clk 0:00:54.1]} 20. Nxf5 {[%clk 0:01:59.9]} 20... Qf7 {[%clk 0:00:49.5]} 21.
Nxh6+ {[%clk 0:01:59.8]} 21... Bxh6 {[%clk 0:00:49.7]} 22. Qxh6 {[%clk
0:02:00.7]} 22... Nd7 {[%clk 0:00:40.5]} 23. Nxe4 {[%clk 0:01:38.1]} 23... Qg7
{[%clk 0:00:32]} 24. Qe6+ {[%clk 0:01:37.7]} 24... Kh8 {[%clk 0:00:28]} 25. Bh6
{[%clk 0:01:28.2]} 25... Qxb2 {[%clk 0:00:18.8]} 26. Rg1 {[%clk 0:01:19.1]}
26... Rae8 {[%clk 0:00:19.2]} 27. Qh3 {[%clk 0:00:48]} 27... Rxe4 {[%clk
0:00:16]} 28. Be3+ {[%clk 0:00:48.6]} 28... Kg8 {[%clk 0:00:15.8]} 29. Bxe4
{[%clk 0:00:49.2]} 29... Nf2+ {[%clk 0:00:16]} 30. Bxf2 {[%clk 0:00:49.1]} 30...
Qxf2 {[%clk 0:00:16.9]} 31. Qh7# {[%clk 0:00:49.2]} 1-0